fUSD/lending_fUSD_20260615
["ID","MTS","AMOUNT","RATE_DAILY","PERIOD"]
[425116560,1781529052000,-341.4,0.00027763,7]
[425116554,1781529052000,-373.43,0.00027702,30]
[425116558,1781529052000,-373.43,0.00027733,2]
[425116633,1781529053000,-1336.872507,0.00028189,2]
[425116621,1781529053000,-373.43,0.00028068,30]
[425116629,1781529053000,-2513.41,0.0002813,2]
[425116628,1781529053000,-341.4,0.0002813,7]
[425116632,1781529053000,-81572.0389932,0.00028171,2]
[425116631,1781529053000,-373.47,0.0002813,7]
[425116630,1781529053000,-994.01,0.0002813,2]
[425116620,1781529053000,-341.4,0.00028068,30]
[425116637,1781529053000,-581.442163,0.000282,7]
[425116638,1781529053000,-581.442163,0.000282,14]
[425116634,1781529053000,-3785.59,0.00028194,7]
[425116643,1781529053000,-1315.61,0.00028315,120]
[425116636,1781529053000,-454.849741,0.000282,14]
[425116639,1781529053000,-845.9,0.00028267,2]
[425116644,1781529053000,-3785.59,0.00028355,2]
[425116646,1781529053000,-644.79446245,0.00028435,2]
[425116647,1781529053000,-151.0,0.00028435,2]
[425116641,1781529053000,-235.91023219,0.00028288,2]
[425116648,1781529053000,-804.17102365,0.00028435,2]
[425116640,1781529053000,-17029.85,0.00028272,7]
[425116645,1781529053000,-1589.22,0.00028376,2]
[425116649,1781529053000,-404.46092731,0.00028438,2]
[425116619,1781529053000,-1315.61,0.00028068,120]
[425116635,1781529053000,-454.849741,0.000282,7]
[425116622,1781529053000,-341.4,0.00028099,2]
[425116642,1781529053000,-1077.83,0.000283,7]
[425116625,1781529053000,-927.42,0.000281,7]
[425116600,1781529053000,-500.0,0.00028,7]
[425116599,1781529053000,-49138.0100239,0.00028,2]
[425116601,1781529053000,-934.85120742,0.00028,120]
[425116602,1781529053000,-300.0,0.00028,20]
[425116603,1781529053000,-264.89760161,0.00028,7]
[425116605,1781529053000,-39142.12995954,0.00028,30]
[425116607,1781529053000,-643.0,0.00028,2]
[425116606,1781529053000,-300.0,0.00028,7]
[425116604,1781529053000,-300.0,0.00028,20]
[425116612,1781529053000,-10000.0,0.00028,2]
[425116608,1781529053000,-600.0,0.00028,2]
[425116609,1781529053000,-10000.0,0.00028,2]
[425116613,1781529053000,-10000.0,0.00028,7]
[425116614,1781529053000,-341.4,0.00028007,2]
[425116610,1781529053000,-974.51,0.00028,2]
[425116611,1781529053000,-10000.0,0.00028,2]
[425116615,1781529053000,-373.43,0.00028007,2]
[425116618,1781529053000,-373.43,0.00028038,7]
[425116616,1781529053000,-3785.59,0.00028033,30]
[425116617,1781529053000,-341.4,0.00028038,7]
[425116623,1781529053000,-373.43,0.00028099,2]
[425116627,1781529053000,-642.25,0.0002813,2]
[425116624,1781529053000,-576.74,0.000281,7]
[425116626,1781529053000,-500.0,0.00028124,60]
[425116651,1781529053000,-6625.0,0.00028463,7]
[425116703,1781529053000,-283.46664654,0.00028973,14]
[425116650,1781529053000,-301.14337869,0.00028438,2]
[425116681,1781529053000,-250.0,0.00028739,11]
[425116682,1781529053000,-989.76,0.0002875,7]
[425116680,1781529053000,-501.0,0.00028716,12]
[425116683,1781529053000,-202.52,0.00028767,53]
[425116686,1781529053000,-191.6975,0.00028772,14]
[425116685,1781529053000,-632.22,0.00028771,2]
[425116687,1781529053000,-576.74,0.000288,7]
[425116689,1781529053000,-457.849741,0.000288,14]
[425116692,1781529053000,-150.0,0.00028855,2]
[425116690,1781529053000,-1315.61,0.00028808,120]
[425116691,1781529053000,-3785.59,0.00028838,2]
[425116694,1781529053000,-5064.0726867,0.000289,120]
[425116695,1781529053000,-201766.24,0.000289,2]
[425116693,1781529053000,-200.0,0.000289,2]
[425116697,1781529053000,-500.0,0.000289,14]
[425116696,1781529053000,-20343.32839939,0.000289,2]
[425116698,1781529053000,-503.09,0.000289,14]
[425116700,1781529053000,-1589.22,0.00028963,2]
[425116699,1781529053000,-504.0,0.000289,2]
[425116701,1781529053000,-40521.26027402,0.0002897,6]
[425116704,1781529053000,-228.92658341,0.00028973,14]
[425116702,1781529053000,-175.75444454,0.00028973,14]
[425116661,1781529053000,-3345.87717613,0.00028493,10]
[425116684,1781529053000,-150.0,0.00028767,2]
[425116679,1781529053000,-152.99747166,0.00028679,7]
[425116688,1781529053000,-457.849741,0.000288,7]
[425116676,1781529053000,-1343.11682832,0.00028646,15]
[425116653,1781529053000,-338.69902101,0.00028466,7]
[425116678,1781529053000,-3785.59,0.00028677,7]
[425116654,1781529053000,-208.51009773,0.00028466,7]
[425116652,1781529053000,-327.27699924,0.00028466,2]
[425116658,1781529053000,-317.61155731,0.00028474,7]
[425116655,1781529053000,-201.63276584,0.00028466,7]
[425116659,1781529053000,-26077.06141194,0.00028493,2]
[425116657,1781529053000,-228.28786179,0.00028466,7]
[425116656,1781529053000,-188.04951609,0.00028466,7]
[425116662,1781529053000,-501.0502772,0.00028493,10]
[425116666,1781529053000,-587.442163,0.000285,14]
[425116667,1781529053000,-3785.59,0.00028516,30]
[425116660,1781529053000,-2810.67920563,0.00028493,25]
[425116665,1781529053000,-587.442163,0.000285,7]
[425116677,1781529053000,-425.63924356,0.00028677,2]
[425116675,1781529053000,-350.0,0.0002863,11]
[425116670,1781529053000,-1315.61,0.00028562,120]
[425116671,1781529053000,-315.38960917,0.00028583,7]
[425116673,1781529053000,-429.76,0.00028596,8]
[425116674,1781529053000,-1077.83,0.000286,7]
[425116668,1781529053000,-428.82961143,0.00028535,5]
[425116669,1781529053000,-303.03114095,0.00028535,7]
[425116663,1781529053000,-451.849741,0.000285,7]
[425116664,1781529053000,-451.849741,0.000285,14]
[425116672,1781529053000,-199.8903697,0.00028592,7]
[425116745,1781529054000,-500.0,0.00029,2]
[425116754,1781529054000,-508.0,0.00029,10]
[425116744,1781529054000,-500.0,0.00029,2]
[425116743,1781529054000,-500.0,0.00029,2]
[425116742,1781529054000,-500.0,0.00029,2]
[425116740,1781529054000,-151.35008751,0.00028973,14]
[425116736,1781529054000,-170.34574951,0.00028973,14]
[425116739,1781529054000,-202.77639814,0.00028973,14]
[425116738,1781529054000,-159.51359976,0.00028973,14]
[425116734,1781529054000,-206.98219157,0.00028973,14]
[425116735,1781529054000,-207.06789876,0.00028973,14]
[425116741,1781529054000,-500.0,0.00029,2]
[425116746,1781529054000,-500.0,0.00029,2]
[425116756,1781529054000,-41020.59801366,0.00029,2]
[425116749,1781529054000,-500.0,0.00029,2]
[425116751,1781529054000,-500.0,0.00029,2]
[425116752,1781529054000,-241.78,0.00029,2]
[425116748,1781529054000,-500.0,0.00029,2]
[425116753,1781529054000,-500.0,0.00029,2]
[425116750,1781529054000,-500.0,0.00029,2]
[425116757,1781529054000,-2599.36646301,0.00029,2]
[425116758,1781529054000,-1001.99659275,0.00029,2]
[425116760,1781529054000,-219.99258299,0.00029,2]
[425116759,1781529054000,-9630.69243011,0.00029,2]
[425116755,1781529054000,-111112.28779772,0.00029,2]
[425116737,1781529054000,-157.47818619,0.00028973,14]
[425116747,1781529054000,-500.0,0.00029,2]
[425116732,1781529054000,-161.08293984,0.00028973,14]
[425116705,1781529054000,-209.76286594,0.00028973,14]
[425116731,1781529054000,-201.65889268,0.00028973,14]
[425116763,1781529054000,-888.88,0.00029,2]
[425116707,1781529054000,-230.04712637,0.00028973,14]
[425116706,1781529054000,-189.9999217,0.00028973,14]
[425116709,1781529054000,-245.05496032,0.00028973,14]
[425116708,1781529054000,-257.44716883,0.00028973,14]
[425116716,1781529054000,-163.50212116,0.00028973,14]
[425116715,1781529054000,-219.16005302,0.00028973,14]
[425116710,1781529054000,-237.31704348,0.00028973,14]
[425116714,1781529054000,-246.9931111,0.00028973,14]
[425116711,1781529054000,-217.26856098,0.00028973,14]
[425116712,1781529054000,-157.66741337,0.00028973,14]
[425116719,1781529054000,-356.25086585,0.00028973,14]
[425116733,1781529054000,-230.37064635,0.00028973,14]
[425116718,1781529054000,-409.38541767,0.00028973,14]
[425116717,1781529054000,-308.90623672,0.00028973,14]
[425116720,1781529054000,-310.2171607,0.00028973,14]
[425116722,1781529054000,-180.90125709,0.00028973,14]
[425116723,1781529054000,-180.0406888,0.00028973,14]
[425116724,1781529054000,-156.17853566,0.00028973,14]
[425116725,1781529054000,-556.28340228,0.00028973,14]
[425116726,1781529054000,-375.75473241,0.00028973,14]
[425116728,1781529054000,-196.863047,0.00028973,14]
[425116727,1781529054000,-250.9262453,0.00028973,14]
[425116729,1781529054000,-153.14818875,0.00028973,14]
[425116730,1781529054000,-200.79947807,0.00028973,14]
[425116721,1781529054000,-196.71618877,0.00028973,14]
[425116713,1781529054000,-200.8168961,0.00028973,14]
[425116765,1781529054000,-1077.83,0.00029,7]
[425116764,1781529054000,-690.09,0.00029,2]
[425116809,1781529054000,-4000.0,0.00029,3]
[425116794,1781529054000,-584.442163,0.00029,14]
[425116795,1781529054000,-401.89,0.00029,2]
[425116793,1781529054000,-584.442163,0.00029,7]
[425116796,1781529054000,-198.0,0.00029,2]
[425116797,1781529054000,-500.0,0.00029,2]
[425116800,1781529054000,-500.0,0.00029,2]
[425116801,1781529054000,-500.0,0.00029,2]
[425116805,1781529054000,-612.5,0.00029,120]
[425116804,1781529054000,-500.0,0.00029,2]
[425116806,1781529054000,-500.0,0.00029,2]
[425116807,1781529054000,-500.0,0.00029,2]
[425116810,1781529054000,-350.0,0.00029,30]
[425116791,1781529054000,-454.849741,0.00029,14]
[425116813,1781529054000,-12529.93684114,0.00029,2]
[425116814,1781529054000,-348.14337737,0.00029,2]
[425116808,1781529054000,-172.53890525,0.00029,2]
[425116811,1781529054000,-3785.67,0.00029,30]
[425116815,1781529054000,-2000.0,0.00029,2]
[425116816,1781529054000,-2000.0,0.00029,2]
[425116817,1781529054000,-2000.0,0.00029,2]
[425116818,1781529054000,-2000.0,0.00029,2]
[425116819,1781529054000,-2000.0,0.00029,2]
[425116821,1781529054000,-1198.48119,0.00029,2]
[425116822,1781529054000,-195.7212932,0.00029009,2]
[425116766,1781529054000,-9021.95,0.00029,2]
[425116820,1781529054000,-1000.0,0.00029,2]
[425116812,1781529054000,-500.0,0.00029,2]
[425116798,1781529054000,-10073.0,0.00029,120]
[425116799,1781529054000,-500.0,0.00029,2]
[425116803,1781529054000,-500.0,0.00029,2]
[425116762,1781529054000,-42573.87049945,0.00029,2]
[425116761,1781529054000,-2324.61784516,0.00029,2]
[425116767,1781529054000,-4135.75657214,0.00029,2]
[425116776,1781529054000,-10000.0,0.00029,2]
[425116778,1781529054000,-10000.0,0.00029,2]
[425116777,1781529054000,-10000.0,0.00029,2]
[425116802,1781529054000,-500.0,0.00029,2]
[425116771,1781529054000,-2141.687591,0.00029,30]
[425116768,1781529054000,-7000.00000011,0.00029,2]
[425116770,1781529054000,-1146.0,0.00029,2]
[425116769,1781529054000,-5000.0,0.00029,2]
[425116775,1781529054000,-200.0,0.00029,2]
[425116773,1781529054000,-200.0,0.00029,2]
[425116774,1781529054000,-200.0,0.00029,2]
[425116772,1781529054000,-8165.3734961,0.00029,15]
[425116781,1781529054000,-613.0,0.00029,2]
[425116780,1781529054000,-1204.14347239,0.00029,15]
[425116782,1781529054000,-980.19689022,0.00029,7]
[425116789,1781529054000,-10000.0,0.00029,2]
[425116786,1781529054000,-157.0,0.00029,2]
[425116783,1781529054000,-580.6700119,0.00029,2]
[425116784,1781529054000,-2000.0,0.00029,2]
[425116787,1781529054000,-154.9,0.00029,2]
[425116790,1781529054000,-454.849741,0.00029,7]
[425116788,1781529054000,-10000.0,0.00029,2]
[425116785,1781529054000,-40609.58045841,0.00029,2]
[425116779,1781529054000,-8343.0,0.00029,2]
[425116792,1781529054000,-4027.89,0.00029,2]
[425116851,1781529055000,-4793.0,0.0002925,10]
[425116843,1781529055000,-205.22223056,0.0002913,20]
[425116845,1781529055000,-1174.0,0.0002917,7]
[425116844,1781529055000,-1027.59,0.00029132,5]
[425116849,1781529055000,-411.68,0.00029212,8]
[425116847,1781529055000,-152.0,0.00029186,7]
[425116848,1781529055000,-154.77912629,0.00029186,5]
[425116846,1781529055000,-1027.59,0.00029175,5]
[425116855,1781529055000,-451.849741,0.000293,14]
[425116854,1781529055000,-451.849741,0.000293,7]
[425116853,1781529055000,-157.30909335,0.00029275,7]
[425116852,1781529055000,-1041.23,0.0002925,7]
[425116858,1781529055000,-1174.0,0.00029311,7]
[425116859,1781529055000,-191.6975,0.0002932,14]
[425116861,1781529055000,-508.04853151,0.00029323,7]
[425116839,1781529055000,-601.37,0.000291,2]
[425116857,1781529055000,-581.442163,0.000293,14]
[425116856,1781529055000,-581.442163,0.000293,7]
[425116842,1781529055000,-601.55,0.000291,2]
[425116838,1781529055000,-2374.0,0.00029099,30]
[425116841,1781529055000,-403.94,0.000291,2]
[425116860,1781529055000,-490.91549887,0.00029323,2]
[425116824,1781529055000,-394.15118437,0.00029014,2]
[425116825,1781529055000,-1315.8,0.00029055,120]
[425116826,1781529055000,-189.0,0.00029057,30]
[425116823,1781529055000,-1027.59,0.00029012,7]
[425116831,1781529055000,-969.0,0.00029099,30]
[425116827,1781529055000,-156.0,0.00029057,30]
[425116836,1781529055000,-282.0,0.00029099,30]
[425116832,1781529055000,-155.0,0.00029099,30]
[425116828,1781529055000,-546.0,0.00029099,30]
[425116833,1781529055000,-382.0,0.00029099,30]
[425116829,1781529055000,-151.0,0.00029099,30]
[425116837,1781529055000,-232.0,0.00029099,30]
[425116835,1781529055000,-249.0,0.00029099,30]
[425116834,1781529055000,-153.0,0.00029099,30]
[425116830,1781529055000,-239.0,0.00029099,30]
[425116840,1781529055000,-1372.79,0.000291,30]
[425116850,1781529055000,-1041.23,0.00029248,2]
[425116867,1781529055000,-454.54671142,0.00029394,7]
[425116881,1781529055000,-305.99494333,0.0002952,7]
[425116869,1781529055000,-643.24441715,0.00029394,5]
[425116892,1781529055000,-877.72,0.00029534,30]
[425116893,1781529055000,-188.3,0.0002954,14]
[425116897,1781529055000,-457.849741,0.000296,7]
[425116887,1781529055000,-1193.86,0.00029534,7]
[425116895,1781529055000,-1589.22,0.0002955,2]
[425116894,1781529055000,-188.3,0.0002954,14]
[425116896,1781529055000,-169.87,0.00029573,3]
[425116888,1781529055000,-1280.19,0.00029534,7]
[425116886,1781529055000,-1263.49,0.00029534,7]
[425116890,1781529055000,-1282.64,0.00029534,7]
[425116868,1781529055000,-456.57572358,0.00029394,7]
[425116899,1781529055000,-158.6826149,0.00029611,7]
[425116900,1781529055000,-2110.0,0.00029637,2]
[425116901,1781529055000,-495.31,0.00029698,2]
[425116898,1781529055000,-457.849741,0.000296,14]
[425116903,1781529055000,-10317.95,0.000298,3]
[425116904,1781529055000,-487253.3933765,0.000298,2]
[425116902,1781529055000,-500.0,0.00029768,60]
[425116891,1781529055000,-877.34,0.00029534,30]
[425116884,1781529055000,-994.4,0.00029533,30]
[425116889,1781529055000,-1086.15,0.00029534,7]
[425116885,1781529055000,-1176.73,0.00029534,7]
[425116871,1781529055000,-230.44332921,0.00029405,7]
[425116873,1781529055000,-473.08441376,0.00029443,7]
[425116872,1781529055000,-1041.23,0.00029436,5]
[425116862,1781529055000,-417.02019546,0.00029323,7]
[425116864,1781529055000,-376.09903219,0.00029323,7]
[425116865,1781529055000,-476.41733597,0.00029332,7]
[425116863,1781529055000,-403.26553167,0.00029323,7]
[425116883,1781529055000,-610.85,0.00029533,7]
[425116874,1781529055000,-259.15425736,0.00029451,2]
[425116876,1781529055000,-399.78073941,0.00029452,7]
[425116878,1781529055000,-500.0,0.00029494,60]
[425116879,1781529055000,-576.74,0.000295,7]
[425116875,1781529055000,-152.57361676,0.00029451,7]
[425116870,1781529055000,-619.6,0.000294,7]
[425116880,1781529055000,-1000.0,0.000295,2]
[425116877,1781529055000,-501.0,0.00029481,12]
[425116882,1781529055000,-757.73,0.00029527,7]
[425116866,1781529055000,-150.0,0.00029372,2]
[425116906,1781529056000,-2601.899063,0.000298,2]
[425116907,1781529056000,-7860.40544192,0.000298,2]
[425116905,1781529056000,-571.550937,0.00027397,2]
[425116908,1781529056000,-416.88213483,0.00027397,2]
[425116910,1781529056000,-230.03099783,0.00027397,2]
[425116909,1781529056000,-154.66880217,0.00027397,2]
[425116927,1781529058000,-571.550937,0.00027397,2]
[425116929,1781529058000,-571.550937,0.00027397,2]
[425116928,1781529058000,-571.550937,0.00027397,2]
[425116930,1781529058000,-571.550942,0.00027397,2]
[425116925,1781529058000,-571.550937,0.00027397,2]
[425116926,1781529058000,-571.550937,0.00027397,2]
[425116924,1781529058000,-571.550937,0.00027397,2]
[425116921,1781529058000,-31.09758578,0.00027397,2]
[425116919,1781529058000,-449.0,0.00021314,7]
[425116922,1781529058000,-571.550937,0.00027397,2]
[425116923,1781529058000,-18165.26,0.00027397,10]
[425116918,1781529058000,-250.0,0.00013847,2]
[425116917,1781529058000,-173.58430204,0.00027397,2]
[425116912,1781529058000,-196.12000946,0.000239,2]
[425116916,1781529058000,-366.86904918,0.00027397,2]
[425116915,1781529058000,-258.13095082,0.00027397,2]
[425116913,1781529058000,-341.51993917,0.00027397,2]
[425116914,1781529058000,-313.41998618,0.00027397,2]
[425116911,1781529058000,-539.0,0.0001805,5]
[425116920,1781529058000,-150.0,0.00021918,2]
[425116931,1781529058000,-3785.6,0.0002755,30]
[425116943,1781529058000,-3785.6,0.00027872,2]
[425116933,1781529058000,-2692.92,0.0002755,2]
[425116952,1781529058000,-540.80462682,0.000298,2]
[425116950,1781529058000,-26560.09999993,0.000298,2]
[425116951,1781529058000,-833.49,0.0002755,2]
[425116949,1781529058000,-8174.5077947,0.000298,2]
[425116946,1781529058000,-3532.0,0.00029099,30]
[425116948,1781529058000,-4032.81198239,0.000298,2]
[425116947,1781529058000,-1400.29937461,0.000298,2]
[425116945,1781529058000,-3785.6,0.00028194,7]
[425116942,1781529058000,-3785.6,0.00027711,7]
[425116953,1781529058000,-443249.8507975,0.000298,2]
[425116936,1781529058000,-833.49,0.0002755,7]
[425116944,1781529058000,-3785.6,0.00028033,30]
[425116934,1781529058000,-2692.92,0.0002755,7]
[425116935,1781529058000,-2692.92,0.0002755,2]
[425116939,1781529058000,-833.49,0.0002755,7]
[425116932,1781529058000,-2692.92,0.0002755,7]
[425116940,1781529058000,-833.49,0.0002755,2]
[425116937,1781529058000,-2692.92,0.0002755,7]
[425116941,1781529058000,-833.49,0.0002755,7]
[425116938,1781529058000,-833.49,0.0002755,2]
[425116954,1781529127000,-500.0,0.00010976,2]
[425116955,1781529181000,-457.15067716,0.0001179,2]
[425116956,1781529209000,338.83553214,0.0001,2]
[425116957,1781529234000,-216.09656886,0.00010976,2]
[425116958,1781529288000,-216.09656886,0.00010977,2]
[425116959,1781529342000,-150.0,0.0001118,2]
[425116961,1781529394000,-300.0,0.00011384,2]
[425116962,1781529447000,-250.0,0.00011587,2]
[425116963,1781529502000,-282.8390377,0.00011762,2]
[425116965,1781529555000,-150.0,0.00011788,2]
[425116966,1781529609000,-177.61959082,0.00011788,2]
[425116967,1781529694000,-192.456537,0.00023282,120]
[425116968,1781529702000,1547.543463,0.0002328,120]
[425116969,1781529826000,-166.66,0.00011341,2]
[425116970,1781529880000,-166.66,0.0001158,2]
[425116971,1781529934000,-1125.99999999,0.00011432,2]
[425116972,1781529954000,-356.53000001,0.00011432,2]
[425116973,1781530007000,-10543.96344835,0.00011413,2]
[425116974,1781530008000,435.10802924,0.00011431,120]
[425116975,1781530026000,-500.0,0.00011412,2]
[425116976,1781530078000,-10543.96344835,0.00011375,2]
[425116977,1781530095000,-778.66655165,0.00011375,2]
[425116978,1781530150000,-500.0,0.00011411,2]
[425116981,1781530173000,-3106.87658066,0.00011326,2]
[425116982,1781530202000,-300.0,0.00010578,2]
[425117018,1781530232000,-500.0,0.00011411,2]
[425117022,1781530232000,-500.0,0.00011411,2]
[425117014,1781530232000,-500.0,0.00011411,2]
[425117013,1781530232000,-500.0,0.00011411,2]
[425117016,1781530232000,-500.0,0.00011411,2]
[425117021,1781530232000,-500.0,0.00011411,2]
[425117012,1781530232000,-500.0,0.00011411,2]
[425117017,1781530232000,-500.0,0.00011411,2]
[425117015,1781530232000,-500.0,0.00011411,2]
[425117019,1781530232000,-500.0,0.00011411,2]
[425117028,1781530232000,-253.59912,0.00011412,2]
[425117035,1781530232000,-150.0,0.00011552,2]
[425117023,1781530232000,-500.0,0.00011411,2]
[425117034,1781530232000,-166.15,0.00011538,2]
[425117026,1781530232000,-500.0,0.00011411,2]
[425117032,1781530232000,-321.83,0.00011452,2]
[425117029,1781530232000,-6257.20423884,0.00011413,2]
[425117031,1781530232000,-150.0,0.00011438,2]
[425117020,1781530232000,-500.0,0.00011411,2]
[425117025,1781530232000,-300.0,0.00011411,2]
[425117030,1781530232000,-176.66231281,0.00011413,2]
[425117024,1781530232000,-500.0,0.00011411,2]
[425117011,1781530232000,-500.0,0.00011411,2]
[425116994,1781530232000,-500.0,0.00011411,2]
[425117007,1781530232000,-500.0,0.00011411,2]
[425116986,1781530232000,-388.13647899,0.00010578,2]
[425116987,1781530232000,-150.0,0.00010952,2]
[425116990,1781530232000,-500.0,0.00011411,2]
[425116991,1781530232000,-500.0,0.00011411,2]
[425116992,1781530232000,-500.0,0.00011411,2]
[425116996,1781530232000,-500.0,0.00011411,2]
[425116995,1781530232000,-500.0,0.00011411,2]
[425116989,1781530232000,-150.0,0.0001141,2]
[425116998,1781530232000,-135.59475415,0.00011411,2]
[425116988,1781530232000,-479.54341934,0.00011326,2]
[425117008,1781530232000,-500.0,0.00011411,2]
[425116993,1781530232000,-500.0,0.00011411,2]
[425117000,1781530232000,-273.91002723,0.00011411,2]
[425117001,1781530232000,-500.0,0.00011411,2]
[425117010,1781530232000,-462.48661393,0.00011411,2]
[425116999,1781530232000,-226.08997277,0.00011411,2]
[425117002,1781530232000,-500.0,0.00011411,2]
[425117004,1781530232000,-500.0,0.00011411,2]
[425117006,1781530232000,-500.0,0.00011411,2]
[425117009,1781530232000,-500.0,0.00011411,2]
[425117003,1781530232000,-500.0,0.00011411,2]
[425117005,1781530232000,-500.0,0.00011411,2]
[425117027,1781530232000,-500.0,0.00011411,2]
[425117036,1781530232000,-3586.42,0.00011609,2]
[425116997,1781530232000,-364.40524585,0.00011411,2]
[425117039,1781530232000,-150.0,0.00011665,2]
[425117063,1781530232000,-6095.29953586,0.00011791,2]
[425117065,1781530232000,-216.09656886,0.00011803,2]
[425117067,1781530232000,-853.8,0.00011888,2]
[425117038,1781530232000,-364.51547646,0.00011636,2]
[425117071,1781530232000,-150.0,0.00011938,2]
[425117070,1781530232000,-7314.37,0.00011938,2]
[425117074,1781530232000,-300.0,0.00012,2]
[425117076,1781530232000,-3586.42,0.00012176,2]
[425117075,1781530232000,-166.66,0.00012057,2]
[425117072,1781530232000,-536.79,0.00011938,2]
[425117062,1781530232000,-688.86301301,0.00011791,2]
[425117079,1781530232000,-166.66,0.00012296,2]
[425117077,1781530232000,-2924.24,0.00012258,2]
[425117081,1781530232000,-166.09,0.00012329,2]
[425117080,1781530232000,-166.66,0.00012296,2]
[425117073,1781530232000,-1852.42,0.00011938,2]
[425117085,1781530232000,-6255.7964,0.00012493,2]
[425117083,1781530232000,-3586.42,0.00012459,2]
[425117086,1781530232000,-300.0,0.000125,2]
[425117082,1781530232000,-200.0,0.00012391,2]
[425117087,1781530232000,-300.0,0.00012512,2]
[425117084,1781530232000,-255.0,0.00012471,2]
[425117078,1781530232000,-409.09707871,0.0001226,2]
[425117064,1781530232000,-160.0,0.000118,2]
[425117066,1781530232000,-166.66,0.00011818,2]
[425117061,1781530232000,-2490.57914543,0.00011791,2]
[425117037,1781530232000,-300.0,0.00011636,2]
[425117040,1781530232000,-176.71135637,0.00011727,2]
[425117041,1781530232000,-500.0,0.00011783,2]
[425117043,1781530232000,-356.36188772,0.00011783,2]
[425117042,1781530232000,-153.515383,0.00011783,2]
[425117059,1781530232000,-368.02010187,0.0001179,2]
[425117044,1781530232000,-500.0,0.00011783,2]
[425117048,1781530232000,-355.69789929,0.00011783,2]
[425117047,1781530232000,-144.30210071,0.00011783,2]
[425117050,1781530232000,-440.96687454,0.00011783,2]
[425117049,1781530232000,-500.0,0.00011783,2]
[425117046,1781530232000,-354.73521371,0.00011783,2]
[425117051,1781530232000,-59.03312546,0.00011783,2]
[425117052,1781530232000,-337.10390771,0.00011783,2]
[425117054,1781530232000,-368.73537469,0.00011783,2]
[425117056,1781530232000,-500.0,0.00011783,2]
[425117055,1781530232000,-23.08212063,0.00011783,2]
[425117058,1781530232000,-417.51182976,0.0001179,2]
[425117057,1781530232000,-214.46806837,0.0001179,2]
[425117060,1781530232000,-603.701434,0.00011791,2]
[425117068,1781530232000,-3586.42,0.00011892,2]
[425117069,1781530232000,-1000.0,0.00011938,2]
[425117053,1781530232000,-500.0,0.00011783,2]
[425117104,1781530233000,-16395.84679902,0.00012632,2]
[425117105,1781530233000,-44314.16179767,0.00012632,2]
[425117095,1781530233000,-171.67852498,0.00012597,2]
[425117092,1781530233000,-166.66,0.00012535,2]
[425117094,1781530233000,-559.34228233,0.00012597,2]
[425117088,1781530233000,-250.0,0.00012512,2]
[425117090,1781530233000,-1342.36437873,0.00012532,2]
[425117091,1781530233000,-2500.0,0.00012532,2]
[425117093,1781530233000,-193.0,0.00012597,2]
[425117089,1781530233000,-535.2443,0.00012531,2]
[425117098,1781530233000,-678.98656293,0.00012622,2]
[425117110,1781530233000,-1049.24108504,0.00012632,2]
[425117097,1781530233000,-678.98656293,0.00012622,2]
[425117108,1781530233000,-1254.41808677,0.00012632,2]
[425117111,1781530233000,-5144.36591552,0.00012632,2]
[425117109,1781530233000,-431.72491626,0.00012632,2]
[425117106,1781530233000,-38679.12140331,0.00012632,2]